bitfinex/quotes_ETHUSD_20240603
["timestamp","ask_amount","ask_price","bid_price","bid_amount"]
[1717387680422,0.87248566,3800.1,3799.3,0.2654556]
[1717387680623,0.474,3799.7,3799.3,0.2654556]
[1717387680927,0.474,3799.7,3798.0,0.28445889]
[1717387680928,2.63199,3799.4,3798.3,2.84844011]
[1717387681153,1.04298017,3799.3,3798.4,0.26569597]
[1717387681329,0.474,3799.1,3798.4,0.26569597]
[1717387682155,2.63219,3799.2,3798.4,0.26569597]
[1717387682352,1.04298017,3799.1,3798.4,0.26569597]
[1717387682735,0.474,3798.9,3798.4,0.26569597]
[1717387683067,0.474,3798.7,3798.1,2.3042]
[1717387683252,2.63235,3798.9,3798.5,0.26568649]
[1717387683253,3.10635,3798.9,3798.5,0.26568649]
[1717387683451,3.10635,3798.9,3798.1,2.3042]
[1717387683452,0.310635,3798.8,3798.1,2.3042]
[1717387683670,2.63235,3798.9,3798.6,0.26567701]
[1717387683989,3.10607,3799.3,3798.7,0.26566753]
[1717387684131,0.474,3799.1,3798.7,0.26566753]
[1717387684476,0.474,3799.1,3798.2,0.474]
[1717387684673,0.474,3799.1,3798.8,0.26596105]
[1717387684976,0.474,3799.1,3798.2,0.474]
[1717387685131,0.56905778,3799.2,3798.4,0.474]
[1717387685327,0.56905778,3799.2,3798.5,0.26602917]
[1717387685535,0.474,3799.1,3798.2,0.474]
[1717387685770,0.56905778,3799.2,3798.3,0.26604813]
[1717387685979,2.63207,3799.3,3798.6,0.474]
[1717387686477,2.63207,3799.3,3798.7,0.26601021]
[1717387686675,0.474,3799.6,3798.7,0.26601021]
[1717387686838,0.56901981,3799.6,3798.7,0.26601021]
[1717387687680,1.04301981,3799.6,3798.7,0.26601021]
[1717387687865,2.13849879,3799.6,3798.6,2.7376]
[1717387688070,0.474,3799.4,3798.6,2.2636]
[1717387688247,0.474,3799.4,3798.7,0.26601021]
[1717387690088,0.474,3799.4,3798.4,3.10662]
[1717387690293,0.474,3799.4,3798.5,0.26602917]
[1717387690473,1.04303162,3799.4,3798.5,0.26602917]
[1717387690683,1.04304628,3799.4,3798.5,0.26602917]
[1717387691179,0.474,3799.4,3798.5,0.26602917]
[1717387691377,1.04303458,3799.4,3798.5,0.26602917]
[1717387692991,0.474,3799.4,3798.5,0.82965409]
[1717387693462,1.04304917,3799.4,3798.5,0.26602917]
[1717387693665,2.63207,3799.3,3798.5,0.26602917]
[1717387693878,0.474,3799.0,3798.5,0.26602917]
[1717387694083,0.474,3799.0,3798.0,5.08864]
[1717387694380,0.474,3799.0,3798.1,1.2966269]
[1717387694780,2.63221,3799.1,3798.1,1.2966269]
[1717387695793,2.63221,3799.1,3798.3,0.474]
[1717387696107,2.63221,3799.1,3798.4,0.26632724]
[1717387696895,1.09547898,3799.6,3798.4,0.26632724]
[1717387696896,2.63235,3798.9,3798.4,0.26632724]
[1717387697102,2.63235,3798.9,3798.0,5.08864]
[1717387697302,2.63235,3798.9,3798.0,2.63294]
[1717387697611,2.63235,3798.9,3798.1,0.2664495]
[1717387700969,0.26845176,3800.4,3798.2,2.65643895]
[1717387701183,0.56906266,3801.2,3800.0,2.3191]
[1717387701505,7.28,3802.2,3800.1,2.63147]
[1717387701506,37.27123066,3801.1,3800.1,2.63147]
[1717387701708,0.474,3801.4,3800.1,2.63147]
[1717387701709,0.56906266,3801.4,3800.1,2.89776605]
[1717387701907,0.263031,3802.8,3800.1,2.63147]
[1717387701908,0.474,3800.8,3800.1,2.63147]
[1717387702059,0.474,3801.0,3800.0,0.474]
[1717387702405,0.56871071,3801.5,3800.1,0.26626358]
[1717387702605,0.474,3801.1,3800.1,0.26626358]
[1717387702803,0.474,3801.1,3800.2,0.474]
[1717387703097,0.474,3801.1,3800.3,0.26624463]
[1717387703507,0.56871071,3801.5,3800.3,0.26624463]
[1717387703819,0.474,3801.2,3800.3,0.26182144]
[1717387703999,0.31992007,3801.4,3800.3,0.26182144]
[1717387704303,0.79392007,3801.4,3800.1,2.63148]
[1717387704468,0.79392007,3801.4,3800.4,0.74008772]
[1717387704798,0.39931208,3801.3,3800.5,0.26559495]
[1717387705893,0.39931208,3801.3,3800.5,0.26129476]
[1717387707160,0.39931208,3801.3,3800.5,2.89249476]
[1717387707382,0.87331208,3801.3,3800.5,2.89249476]
[1717387708503,0.39931208,3801.3,3800.5,2.89249476]
[1717387708677,0.37192322,3801.2,3800.5,2.89249476]
[1717387711584,0.84592322,3801.2,3800.5,2.89249476]
[1717387719552,0.37192322,3801.2,3800.5,2.89249476]
[1717387719739,0.84592322,3801.2,3800.5,2.89249476]
[1717387724531,0.84592322,3801.2,3800.5,2.6312]
[1717387724732,0.15651554,3801.1,3800.5,2.6312]
[1717387725039,0.15651554,3801.1,3800.6,0.25585625]
[1717387730918,0.37192322,3801.2,3800.7,0.474]
[1717387731140,0.56875158,3801.4,3800.9,0.474]
[1717387731429,0.56875158,3801.4,3801.0,0.25588285]
[1717387731730,0.56875158,3801.5,3801.0,0.25588285]
[1717387731896,0.56875158,3801.5,3800.7,3.10505]
[1717387732092,1.70102674,3801.5,3801.1,0.25584831]
[1717387732297,1.70102674,3801.5,3800.7,3.10505]
[1717387732498,1.70102674,3801.5,3801.2,0.25583885]
[1717387732713,1.70102674,3801.5,3800.7,3.10505]
[1717387732881,1.70102674,3801.5,3801.3,0.25582938]
[1717387733099,1.24550267,3801.4,3800.7,2.63105]
[1717387733520,1.24550267,3801.4,3800.8,0.25587672]
[1717387734901,1.8142085,3801.4,3800.8,0.25587672]
[1717387738384,1.24550267,3801.4,3800.8,0.25587672]
[1717387738584,1.8142085,3801.4,3800.8,0.25587672]
[1717387739005,0.56870583,3801.4,3800.8,0.25587672]
[1717387739220,0.56870583,3801.6,3800.8,2.66667672]
[1717387739430,0.56870583,3801.6,3800.8,3.14067672]
[1717387740201,0.56868191,3801.6,3800.8,2.66667672]
[1717387740823,0.474,3801.5,3800.8,2.66667672]
[1717387744287,0.5686927,3801.6,3800.8,2.66667672]
[1717387744701,1.40096197,3801.6,3800.8,2.66667672]
[1717387749353,0.5686927,3801.6,3800.8,2.66667672]
[1717387749843,0.5686927,3801.6,3800.9,0.474]
[1717387750238,0.5686927,3801.6,3801.0,0.25582915]
[1717387751219,0.5686927,3801.6,3800.8,2.4108]
[1717387751749,0.5686927,3801.6,3800.9,0.25583862]
[1717387751949,1.66400497,3801.6,3800.9,0.25583862]
[1717387754948,0.56869,3801.5,3800.9,0.25583862]
[1717387755111,1.66400227,3801.6,3800.9,0.25583862]
[1717387756318,2.13800227,3801.6,3800.9,0.25583862]
[1717387756518,0.56869,3801.5,3800.9,0.25583862]
[1717387757952,0.56869,3801.6,3801.1,2.63081]
[1717387758251,0.56869,3801.6,3800.9,0.83300748]
[1717387758252,0.56869,3801.6,3801.3,2.63066]
[1717387758460,0.56869,3802.2,3801.4,0.474]
[1717387758617,0.56869,3802.2,3801.5,2.2708]
[1717387758825,0.56869,3802.2,3801.6,0.24707441]
[1717387760220,2.63005,3802.3,3801.6,0.24707441]
[1717387760420,0.56859652,3802.2,3801.5,2.2708]
[1717387763269,0.474,3802.1,3801.5,2.2708]
[1717387763477,0.56859652,3802.2,3801.5,2.2708]
[1717387763478,0.474,3801.9,3801.5,2.2708]
[1717387763839,0.474,3801.9,3801.6,0.24690005]
[1717387768172,0.474,3801.9,3801.2,2.4474]
[1717387768367,0.474,3801.9,3801.7,0.24679095]
[1717387768569,0.474,3801.9,3801.2,2.4474]
[1717387768772,2.63025,3802.0,3801.8,0.24678149]
[1717387768957,0.8885392,3801.9,3801.2,2.4474]
[1717387769164,0.474,3801.6,3801.2,2.4474]
[1717387769413,0.474,3801.4,3800.7,2.4348]
[1717387769683,0.56864927,3801.4,3800.7,2.4348]
[1717387770607,0.56871567,3801.4,3800.7,2.4348]
[1717387770754,0.56871567,3801.4,3800.7,2.72568]
[1717387771077,0.56871567,3801.7,3801.1,2.4574]
[1717387772062,7.28,3801.8,3801.1,2.4574]
[1717387772572,7.28,3801.8,3801.2,0.474]
[1717387773383,7.28,3801.8,3801.1,2.4574]
[1717387773678,0.56863936,3801.7,3801.1,2.4574]
[1717387775340,0.56863936,3801.7,3801.2,0.24687386]
[1717387775628,0.56863936,3801.7,3801.1,2.4574]
[1717387775915,0.56863936,3801.7,3801.2,0.24687386]
[1717387776413,0.56863936,3801.7,3801.3,0.24686439]
[1717387776614,0.56863936,3801.7,3801.1,2.4574]
[1717387776791,0.56863936,3801.7,3801.2,0.24687386]
[1717387776993,0.56863936,3801.7,3801.1,2.4574]
[1717387777319,0.56863936,3801.7,3801.2,0.24687386]
[1717387777680,0.56863936,3801.7,3801.1,2.4574]
[1717387777881,0.56863936,3801.7,3801.3,0.24686439]
[1717387778109,0.56863936,3801.7,3801.2,0.24687386]
[1717387778316,0.56863936,3801.7,3801.4,0.24685492]
[1717387778609,0.56863936,3801.7,3801.5,0.24684546]
[1717387778913,0.56863936,3801.7,3801.1,2.4574]
[1717387779116,0.56863936,3801.8,3801.6,0.24688936]
[1717387779316,0.56863936,3801.8,3801.1,2.4574]
[1717387779785,0.56863936,3801.8,3801.2,0.24692722]
[1717387782140,2.63027,3801.9,3801.3,2.45]
[1717387782310,0.56861839,3801.8,3801.3,2.45]
[1717387782512,0.56861839,3801.8,3801.4,0.24690829]
[1717387783729,0.56860753,3801.8,3801.4,0.24690829]
[1717387786908,0.56860753,3801.8,3801.5,2.3733]
[1717387787139,1.04260753,3802.2,3801.5,2.3733]
[1717387787338,1.16674169,3802.1,3801.6,0.24688936]
[1717387787542,1.73534922,3802.1,3801.6,0.24688936]
[1717387793345,1.73534922,3802.1,3801.5,2.3733]
[1717387793534,1.73534922,3802.1,3801.7,0.2468799]
[1717387793734,1.73534922,3802.1,3801.5,2.3733]
[1717387794059,1.73534922,3802.1,3801.6,0.24671503]
[1717387798583,0.474,3802.0,3801.6,0.24671503]
[1717387798868,1.93245917,3802.0,3801.6,0.24671503]
[1717387799243,4.08868917,3802.0,3801.6,0.24671503]
[1717387799443,0.56860753,3801.9,3801.6,0.24671503]
[1717387806304,0.56860753,3801.9,3801.7,2.2983]
[1717387806593,0.56856254,3802.2,3801.9,2.492]
[1717387806796,9.90966,3802.8,3801.8,3.10433]
[1717387806797,0.56856254,3802.7,3802.2,2.492]
[1717387807089,0.56856254,3802.7,3802.4,2.492]
[1717387807301,0.56856254,3803.1,3802.4,2.492]
[1717387807445,0.56856254,3803.1,3802.5,0.24667609]
[1717387808039,0.56856254,3803.1,3802.5,0.72067609]
[1717387808568,9.90938,3803.2,3802.5,0.72067609]
[1717387808973,9.90938,3803.2,3802.5,0.24667609]
[1717387811359,9.90938,3803.2,3802.6,2.3571]
[1717387811854,9.90938,3803.2,3802.7,0.24643306]
[1717387812272,2.62938,3803.2,3802.7,0.24643306]
[1717387817404,3.10338,3803.2,3802.7,0.24643306]
[1717387821315,0.474,3803.0,3802.7,0.24643306]
[1717387822239,0.474,3803.0,3802.3,2.469]
[1717387822375,0.474,3803.0,3802.8,0.24577986]
[1717387822571,0.474,3803.0,3802.3,2.469]
[1717387822775,0.474,3803.0,3802.9,0.2457704]
[1717387823003,0.474,3803.0,3802.3,2.469]
[1717387823203,0.474,3803.0,3802.9,0.2457704]
[1717387823434,0.474,3803.0,3802.3,2.469]
[1717387823588,0.474,3803.0,3802.9,0.2457704]
[1717387824210,0.474,3803.0,3802.3,2.469]
[1717387824411,2.62938,3803.2,3802.9,0.2457704]
[1717387824723,0.474,3803.0,3802.3,2.469]
[1717387826309,3.10338,3803.2,3802.3,2.469]
[1717387826623,3.10338,3803.2,3802.3,3.026307]
[1717387826795,2.62938,3803.2,3802.3,3.500307]
[1717387826993,2.62938,3803.2,3802.4,2.4375]
[1717387831501,3.10338,3803.2,3802.4,2.4375]
[1717387831702,3.10338,3803.2,3802.5,2.4136]
[1717387833211,0.56844906,3803.1,3802.5,2.4136]
[1717387835423,0.56844906,3803.1,3802.6,0.29996264]
[1717387835731,3.10338,3803.2,3802.6,0.29996264]
[1717387835902,0.56845417,3803.1,3802.6,0.29996264]
[1717387837027,0.474,3803.0,3802.6,0.29996264]
[1717387838237,0.56845417,3803.1,3802.6,0.29996264]
[1717387838551,0.56845417,3803.1,3802.5,2.04330402]
[1717387838705,0.56845417,3803.1,3802.7,0.2899708]
[1717387838908,0.56845417,3803.1,3802.5,2.04330402]
[1717387839127,0.56845417,3803.1,3802.8,0.28995992]
[1717387839436,2.62953,3803.0,3802.5,2.04330402]
[1717387839611,3.10353,3803.0,3802.9,0.28994904]
[1717387839818,3.67200065,3803.0,3802.5,2.04330402]
[1717387840024,3.10353,3803.0,3802.9,0.28994904]
[1717387840239,3.67200122,3803.0,3802.5,2.04330402]
[1717387840403,3.10353,3803.0,3802.9,0.28994904]
[1717387840605,3.67200134,3803.0,3802.5,2.04330402]
[1717387840836,3.10353,3803.0,3802.9,0.28994904]
[1717387841138,3.67200147,3803.0,3802.9,0.28994904]
[1717387841335,3.19800147,3803.0,3802.5,2.04330402]
[1717387841502,0.56847147,3802.9,3802.5,2.24763442]
[1717387842340,0.56847147,3802.9,3802.5,2.04330402]
[1717387846153,0.56847147,3802.9,3802.6,0.29000657]
[1717387846749,1.04247147,3803.3,3802.6,0.29000657]
[1717387847293,1.04243068,3803.3,3802.6,0.29000657]
[1717387848087,2.62937,3803.2,3802.6,0.29000657]
[1717387848289,0.56843068,3803.1,3802.6,0.29000657]
[1717387848680,0.56845024,3803.1,3802.6,0.29000657]
[1717387849191,2.62937,3803.2,3802.6,0.29000657]
[1717387849387,0.56844796,3803.1,3802.6,0.29000657]
[1717387853363,0.56844796,3803.1,3802.7,2.2833]
[1717387853770,0.56844796,3803.1,3802.8,0.28993501]
[1717387854213,0.56844796,3803.1,3802.7,2.2833]
[1717387854375,0.56844796,3803.1,3802.9,0.28992413]
[1717387854575,0.56844796,3803.1,3802.7,2.2833]
[1717387854862,0.56844796,3803.1,3803.0,0.28991325]
[1717387855114,0.56844796,3803.1,3802.7,2.2833]
[1717387855317,0.56844796,3803.1,3803.0,2.60091325]
[1717387855511,0.56844796,3803.1,3803.0,2.311]
[1717387855720,0.56844796,3803.1,3803.0,2.60091325]
[1717387856724,0.56841464,3803.1,3803.0,2.60091325]
[1717387857900,0.56840381,3803.1,3803.0,2.60091325]
[1717387858522,2.62937,3803.2,3803.0,2.60091325]
[1717387858885,0.56840551,3803.1,3803.0,2.60091325]
[1717387859727,2.62937,3803.2,3803.0,2.60091325]
[1717387859921,0.56841319,3803.1,3803.0,2.60091325]
[1717387862448,0.93559151,3803.1,3803.0,2.60091325]
[1717387863713,0.93561495,3803.1,3803.0,2.60091325]
[1717387864032,0.56843663,3803.1,3803.0,2.60091325]
[1717387865515,1.04243663,3803.1,3803.0,0.28991325]
[1717387865713,1.04243663,3803.1,3801.6,2.4561]
[1717387865909,0.474,3802.4,3801.7,5.54020563]
[1717387866342,0.474,3802.4,3801.8,0.79963056]
[1717387866523,2.62989,3802.5,3801.9,5.2605]
[1717387866735,2.62989,3802.5,3802.0,0.28021963]
[1717387866736,0.56843663,3802.4,3802.0,0.28021963]
[1717387866938,0.56855976,3802.4,3802.1,5.2603]
[1717387867246,2.62998,3802.3,3802.1,5.54050874]
[1717387878059,0.474,3802.2,3802.1,5.54050874]
[1717387878258,2.62998,3802.3,3802.1,5.54050874]
[1717387882881,2.940378,3802.3,3802.1,5.54050874]
[1717387885489,0.474,3802.2,3802.1,5.54050874]
[1717387885678,0.474,3802.2,3802.1,5.2603]
[1717387886190,2.940378,3802.3,3802.1,5.54096394]
[1717387894222,0.56858829,3802.2,3802.1,5.54096394]
[1717387894716,2.62998,3802.3,3802.1,5.54096394]
[1717387895509,0.56857138,3802.2,3802.1,5.54096394]
[1717387895704,2.62998,3802.3,3802.1,5.54096394]
[1717387896043,0.56857402,3802.2,3802.1,5.54096394]
[1717387902274,0.56858719,3802.2,3802.1,5.54096394]
[1717387904063,0.56859022,3802.2,3802.1,5.54096394]
[1717387910778,0.56862363,3802.2,3802.1,5.54096394]
[1717387915916,3.10398,3802.3,3802.1,5.54096394]
[1717387916107,0.56864329,3802.2,3802.1,5.54096394]
[1717387916503,0.56864151,3802.2,3802.1,5.54096394]
[1717387917817,0.56864573,3802.2,3802.1,5.54096394]
[1717387921131,1.04264573,3802.2,3802.1,5.54096394]
[1717387921844,0.56864573,3802.2,3802.1,5.54096394]
[1717387922147,1.04264573,3802.2,3802.1,5.54096394]
[1717387927975,0.56864573,3802.2,3802.1,5.54096394]
[1717387929581,0.56864573,3802.2,3802.1,7.99716394]
[1717387930071,0.56859509,3802.2,3802.1,7.99716394]
[1717387931401,0.56859327,3802.2,3802.1,7.99716394]
[1717387932184,1.04259327,3802.2,3802.1,7.99716394]
[1717387933161,0.56859327,3802.2,3802.1,7.99716394]
[1717387941411,1.4098506,3802.2,3802.1,5.54096394]
[1717387946184,1.40988538,3802.2,3802.1,5.54096394]
[1717387953597,1.40988538,3802.2,3802.1,5.2603]
[1717387953598,4.40988538,3802.2,3802.1,5.2603]
[1717387953800,4.40988538,3802.2,3802.1,5.54133742]
[1717387955355,4.41000899,3802.2,3802.1,5.54133742]
[1717387956036,4.4099971,3802.2,3802.1,5.54133742]
[1717387957255,4.41001183,3802.2,3802.1,5.54133742]
[1717387959226,3.93601183,3802.2,3802.1,5.54133742]
[1717387959557,4.41001183,3802.2,3802.1,5.54133742]
[1717387962465,4.40999146,3802.2,3802.1,5.54133742]
[1717387964237,4.40999393,3802.2,3802.1,5.54133742]
[1717387970841,4.41000991,3802.2,3802.1,5.54133742]
[1717387971884,4.41000991,3802.2,3802.1,4.70898686]
[1717387973093,4.41000991,3802.2,3802.1,4.43912397]
[1717387974595,4.41000991,3802.2,3802.1,3.97e-06]
[1717387974866,4.96000991,3802.2,3801.2,2.3997]
[1717387975117,0.474,3801.3,3801.2,2.3997]
[1717387975278,0.474,3801.3,3801.2,2.66255676]
[1717387976391,3.10467,3801.3,3801.2,2.66255676]
[1717387976731,3.67342258,3801.3,3801.2,2.3997]
[1717387977671,3.67342258,3801.3,3800.0,0.474]
[1717387977879,2.63104,3800.8,3800.1,2.72967659]
[1717387978623,2.63104,3800.8,3800.2,5.2625]
[1717387978793,2.63104,3800.8,3800.3,2.4667]
[1717387978997,2.63104,3800.8,3800.4,5.2626]
[1717387979211,2.63104,3800.8,3800.5,2.4667]
[1717387979396,2.63104,3800.8,3800.5,1.06215849]
[1717387979593,2.63104,3800.8,3800.6,2.3728]
[1717387979991,2.63104,3800.8,3800.7,0.26296816]
[1717387981431,3.19985424,3800.8,3800.7,0.26296816]
[1717387981610,3.19985424,3800.8,3800.7,2.66116816]
[1717387981779,2.63104,3800.8,3800.7,2.66116816]
[1717387982297,3.19985075,3800.8,3800.7,2.66116816]
[1717387982497,2.63104,3800.8,3800.7,2.66116816]
[1717387983599,2.63075,3801.2,3800.8,2.4568]
[1717387983912,0.56878895,3801.1,3800.9,0.26317054]
[1717387984129,2.63046,3801.7,3801.0,2.3069]
[1717387984427,2.63055,3801.5,3801.2,2.3069]
[1717387984590,0.56870283,3801.4,3801.2,2.7809]
[1717387984783,0.56870283,3801.7,3801.2,2.7809]
[1717387985094,0.56870283,3801.9,3801.4,2.901]
[1717387985302,0.56870283,3801.9,3801.6,2.427]
[1717387985615,2.63024,3802.0,3801.8,2.427]
[1717387985996,2.63024,3802.0,3801.9,0.26305809]
[1717387986196,2.63024,3802.0,3801.9,2.69005809]
[1717387986405,2.63024,3802.0,3801.9,2.427]
[1717387986609,2.63024,3802.0,3801.9,2.69005809]
[1717387987016,3.19885149,3802.0,3801.9,2.69005809]
[1717387988323,2.63024,3802.0,3801.9,2.69005809]
[1717387997354,2.63024,3802.0,3801.9,3.4437607]
[1717388000839,2.63024,3802.0,3801.9,8.7042607]
[1717388001151,2.63024,3802.0,3801.9,7.95055809]
[1717388002809,3.10393,3802.4,3801.9,7.95055809]
[1717388006160,0.474,3802.2,3801.9,7.95055809]
[1717388008941,3.10393,3802.4,3801.9,7.95055809]
[1717388010159,0.56858774,3802.3,3801.9,7.95055809]
[1717388014249,0.93583951,3802.3,3801.9,7.95055809]
[1717388016076,0.93582746,3802.3,3801.9,7.95055809]
[1717388017575,0.36725177,3802.3,3801.9,7.95055809]
[1717388017774,0.93584996,3802.3,3801.9,7.95055809]
[1717388019683,0.56859819,3802.3,3801.9,7.95055809]
[1717388022285,0.56859819,3802.3,3802.0,2.3195]
[1717388022660,0.56859819,3802.3,3802.1,0.26259152]
[1717388023684,0.56859819,3802.3,3802.2,2.3853]
[1717388024060,0.56859819,3802.6,3802.2,2.64788064]
[1717388025878,0.56859819,3802.6,3802.2,3.4387187]
[1717388026089,0.56859819,3802.6,3802.3,2.4437]
[1717388026392,0.56859819,3802.6,3802.4,0.26238812]
[1717388026570,0.56859819,3802.7,3802.5,2.4437]
[1717388026771,0.56859819,3802.7,3802.6,0.26236636]
[1717388030390,1.04259819,3803.1,3802.6,2.62516636]
[1717388030594,1.04259819,3803.1,3802.6,2.3628]
[1717388030910,1.04259819,3803.1,3802.7,5.2594]
[1717388031207,0.56845621,3803.1,3802.8,2.2785]
[1717388031382,1.04245621,3803.1,3802.9,5.2591]
[1717388031586,1.04245621,3803.1,3803.0,0.26206318]
[1717388033197,1.04245538,3803.1,3803.0,0.26206318]
[1717388035295,1.04245538,3803.1,3802.9,5.2591]
[1717388036074,0.56845538,3803.1,3802.9,5.2591]
[1717388036269,0.56845538,3803.1,3803.0,0.75376]
[1717388036516,2.62939,3803.2,3803.0,0.75376]
[1717388036697,2.62939,3803.2,3803.0,1.01575206]
[1717388044482,2.62939,3803.2,3803.1,2.2913]
[1717388044918,2.62939,3803.2,3803.1,2.55297539]
[1717388049122,3.19783655,3803.2,3803.1,2.55297539]
[1717388049522,2.62939,3803.2,3803.1,2.55297539]
[1717388050184,3.19781827,3803.2,3803.1,2.55297539]
[1717388051377,2.62939,3803.2,3803.1,2.55297539]
[1717388051666,3.19782998,3803.2,3803.1,2.55297539]
[1717388051961,2.62939,3803.2,3803.1,2.55297539]
[1717388052125,3.19782979,3803.2,3803.1,2.55297539]
[1717388053158,2.62939,3803.2,3803.1,2.55297539]
[1717388053370,3.19780727,3803.2,3803.1,2.55297539]
[1717388056631,2.62939,3803.2,3803.1,2.55297539]
[1717388057662,3.19777297,3803.2,3803.1,2.55297539]
[1717388058162,0.56838297,3803.2,3803.1,2.55297539]
[1717388058363,0.56838297,3803.5,3803.1,2.55297539]
[1717388060842,3.10311,3803.6,3803.1,2.55297539]
[1717388061048,0.56838556,3803.5,3803.1,2.55297539]
[1717388061771,0.56839313,3803.5,3803.1,2.55297539]
[1717388063043,3.10311,3803.6,3803.1,2.55297539]
[1717388063245,0.56839126,3803.5,3803.1,2.55297539]
[1717388068795,0.56839132,3803.5,3803.1,2.55297539]
[1717388070159,0.56839315,3803.5,3803.1,2.55297539]
[1717388091432,2.62911,3803.6,3803.1,2.55297539]
[1717388094997,2.62885,3804.0,3803.4,0.474]
[1717388095208,0.56833724,3803.9,3803.5,2.57019366]
[1717388095403,2.62885,3804.0,3803.5,2.57019366]
[1717388095632,2.62885,3804.0,3803.5,2.87461303]
[1717388097133,2.62885,3804.0,3803.6,5.2582]
[1717388097450,2.62885,3804.0,3803.7,0.26137191]
[1717388097611,2.62885,3804.0,3803.8,5.2579]
[1717388097815,2.62885,3804.0,3803.9,0.26135016]
[1717388098043,3.19714375,3804.0,3803.9,5.51915016]
[1717388098897,3.19715003,3804.0,3803.9,5.51915016]
[1717388099339,2.62885,3804.0,3803.9,5.51915016]
[1717388099523,3.19714865,3804.0,3803.9,5.51915016]
[1717388100030,2.62885,3804.0,3803.9,5.51915016]
[1717388100544,3.19713955,3804.0,3803.9,5.51915016]
[1717388101948,2.62885,3804.0,3803.9,5.51915016]
[1717388103414,2.62857,3804.4,3803.9,5.51915016]
[1717388103744,0.56827142,3804.3,3803.9,5.2578]
[1717388104037,0.56827142,3804.3,3804.0,0.26118645]
[1717388104609,0.56827142,3804.3,3804.1,2.3589]
[1717388104818,0.56827142,3804.3,3804.1,3.14668865]
[1717388105141,2.62857,3804.4,3804.2,0.26116471]
[1717388106079,2.62857,3804.4,3804.3,5.2572]
[1717388106281,3.19680705,3804.4,3804.3,5.2572]
[1717388106480,3.19680705,3804.4,3804.3,5.51803039]
[1717388106687,2.62857,3804.4,3804.3,5.51803039]
[1717388106895,7.28,3804.7,3804.3,5.51803039]
[1717388107070,0.56822211,3804.6,3804.4,2.3318]
[1717388107581,7.28,3804.7,3804.5,0.26077311]
[1717388108383,3.10227,3804.8,3804.5,0.26077311]
[1717388110251,2.62827,3804.8,3804.5,0.26077311]
[1717388110447,3.10227,3804.8,3804.5,0.26077311]
[1717388110644,2.62798,3805.2,3804.6,2.2954]
[1717388110856,0.56818817,3805.1,3804.6,2.2954]
[1717388111349,3.10198,3805.2,3804.6,2.2954]
[1717388111982,3.10198,3805.2,3804.7,5.2567]
[1717388112303,3.10198,3805.2,3804.8,0.26049889]
[1717388112444,0.474,3805.1,3804.8,0.26049889]
[1717388112642,0.474,3805.1,3804.7,5.2567]
[1717388112860,0.474,3805.1,3804.8,0.26049889]
[1717388113085,0.474,3805.1,3804.7,5.2567]
[1717388113302,0.474,3805.1,3804.9,0.26048802]
[1717388113502,0.474,3805.1,3804.8,0.26049889]
[1717388113700,0.474,3805.1,3805.0,0.26047715]
[1717388113903,2.62812,3805.0,3804.9,0.26048802]
[1717388114079,3.10212,3805.0,3804.7,5.2567]
[1717388114408,0.474,3804.8,3804.7,5.2567]
[1717388115707,2.62825,3804.8,3804.7,5.2567]
[1717388115912,3.19653263,3804.8,3804.7,5.2567]
[1717388116210,2.62825,3804.8,3804.7,7.6827]
[1717388120310,2.62825,3804.8,3804.7,5.50664127]
[1717388124216,3.19647248,3804.8,3804.7,5.50664127]
[1717388124539,2.62825,3804.8,3804.7,5.50664127]
[1717388126225,3.10225,3804.8,3804.7,5.50664127]
[1717388126698,3.51387112,3804.8,3804.7,5.50664127]
[1717388130967,4.0820596,3804.8,3804.7,5.50664127]
[1717388134590,3.51387112,3804.8,3804.7,5.50664127]
[1717388134735,4.08206684,3804.8,3804.7,5.50664127]
[1717388148217,4.49027352,3804.8,3804.7,5.50664127]
[1717388148509,4.0786524,3804.8,3804.7,5.2567]
[1717388148874,4.0786524,3804.8,3804.7,5.54531312]
[1717388149074,9.7069024,3804.8,3804.7,5.54531312]
[1717388150480,9.7069024,3804.8,3804.7,5.04894312]
[1717388151088,9.7069024,3804.8,3804.7,4.51994312]
[1717388151714,9.75265787,3804.8,3804.7,4.22984312]
[1717388151909,12.93090787,3804.8,3804.7,6.55e-06]
[1717388152232,2.62936,3803.2,3803.1,2.3168]
[1717388152640,2.62936,3803.2,3803.1,2.58667002]
[1717388153521,2.62936,3803.2,3803.1,2.84533702]
[1717388155319,2.62936,3803.2,3803.1,2.58667002]
[1717388157498,0.474,3803.4,3803.1,2.58667002]
[1717388158796,2.62929,3803.3,3803.1,0.26987002]
[1717388159018,0.474,3803.2,3803.1,0.26987002]
[1717388159320,0.474,3803.2,3803.1,0.27016853]
[1717388159506,2.62944,3803.1,3802.8,2.4485]
[1717388159688,0.474,3802.9,3802.8,2.4485]
[1717388160030,0.474,3802.9,3802.0,2.3789]
[1717388160031,2.62972,3802.7,3802.0,2.3789]
[1717388160250,0.474,3802.3,3802.0,2.61679]
[1717388160401,0.474,3802.3,3802.1,5.53048749]
[1717388160738,2.62972,3802.7,3802.1,5.53048749]
[1717388160739,0.474,3802.2,3802.1,5.53048749]
[1717388162234,0.474,3802.4,3802.1,5.53048749]
[1717388163505,0.474,3802.2,3802.1,5.53048749]
[1717388175167,0.784396,3802.2,3802.1,5.53048749]
[1717388180085,0.310396,3802.2,3802.1,5.53048749]
[1717388180378,0.784396,3802.2,3802.1,5.53048749]
[1717388182336,0.474,3802.2,3802.1,5.53048749]
[1717388185236,1.0426544,3802.2,3802.1,5.53048749]
[1717388185437,1.0426544,3802.2,3802.1,5.2602]
[1717388185754,1.0426544,3802.2,3802.1,5.50478453]
[1717388188377,0.5686544,3802.2,3802.1,5.50478453]
[1717388188594,0.474,3802.2,3802.1,5.50478453]
[1717388190680,2.63005,3802.2,3802.1,5.50478453]
[1717388190840,3.67270222,3802.2,3802.1,5.50478453]
[1717388191344,3.67267688,3802.2,3802.1,5.50478453]
[1717388196595,4.03994457,3802.2,3802.1,5.50478453]
[1717388197156,3.56594457,3802.2,3802.1,5.50478453]
[1717388197358,4.03994457,3802.2,3802.1,5.50478453]
[1717388198858,3.47131769,3802.2,3802.1,5.50478453]
[1717388199165,4.03996818,3802.2,3802.1,5.50478453]
[1717388199797,3.67270049,3802.2,3802.1,5.50478453]
[1717388204477,3.67270123,3802.2,3802.1,5.50478453]
[1717388206606,3.67270123,3802.2,3802.1,5.2602]